lending/lending_fUSD_20240111
["ID","MTS","AMOUNT","RATE_DAILY","PERIOD"]
[311242632,1704991833968,-1096.92,0.00023642,2]
[311242633,1704991833978,-155.21,0.00023718,2]
[311242634,1704991833987,-1096.92,0.00023763,2]
[311242635,1704991833996,-250.0,0.00023792,2]
[311242636,1704991834006,-318.45,0.00023798,2]
[311242637,1704991834015,-318.45,0.00023864,2]
[311242638,1704991834029,-1096.92,0.00023884,2]
[311242639,1704991834038,-318.45,0.00023929,2]
[311242640,1704991834050,-259.06685894,0.00023962,2]
[311242641,1704991834059,-1000.0,0.00023967,2]
[311242642,1704991834068,-8457.5727,0.00023968,2]
[311242643,1704991834078,-255.84,0.00023988,2]
[311242644,1704991834087,-318.45,0.00023994,2]
[311242645,1704991834097,-200.84765735,0.00024,2]
[311242646,1704991834106,-155.0,0.00024,2]
[311242647,1704991834115,-430.89321108,0.00024,2]
[311242648,1704991834124,-1096.92,0.00024006,2]
[311242649,1704991834134,-349.22666784,0.00024025,2]
[311242650,1704991834143,-318.45,0.00024059,2]
[311242651,1704991834152,-166103.01679726,0.00024068,2]
[311242652,1704991834161,-318.45,0.00024125,2]
[311242653,1704991834171,-1096.92,0.00024127,2]
[311242654,1704991834180,-498.14,0.0002414,2]
[311242655,1704991834189,-318.45,0.0002419,2]
[311242656,1704991834198,-216.48921933,0.00024212,2]
[311242657,1704991834213,-216.48921933,0.00024212,2]
[311242658,1704991834222,-216.48921933,0.00024212,2]
[311242659,1704991834232,-2989.59105255,0.00024213,2]
[311242660,1704991834241,-1096.92,0.00024248,2]
[311242661,1704991834251,-318.45,0.00024255,2]
[311242662,1704991834260,-318.45,0.0002432,2]
[311242663,1704991834271,-1096.92,0.00024369,2]
[311242664,1704991834280,-318.45,0.00024386,2]
[311242665,1704991834289,-1067.83534184,0.00024447,2]
[311242666,1704991834298,-318.45,0.00024451,2]
[311242667,1704991834307,-1096.92,0.0002449,2]
[311242668,1704991834317,-318.45,0.00024516,2]
[311242669,1704991834326,-155.21,0.00024578,2]
[311242670,1704991834335,-318.45,0.00024581,2]
[311242671,1704991834344,-259.06685894,0.00024587,2]
[311242672,1704991834353,-1096.92,0.00024612,2]
[311242673,1704991834363,-318.45,0.00024647,2]
[311242674,1704991834375,-3884.35,0.00024658,4]
[311242675,1704991834384,-250.0,0.00024658,2]
[311242676,1704991834394,-318.45,0.00024712,2]
[311242677,1704991834405,-2810.2567,0.00024721,2]
[311242678,1704991834414,-1096.92,0.00024733,2]
[311242679,1704991834423,-318.45,0.00024777,2]
[311242680,1704991834432,-212.83,0.00024802,2]
[311242681,1704991834442,-1182.35062023,0.00024819,2]
[311242682,1704991834452,-36071.1954605,0.00024821,2]
[311242683,1704991834465,-4511.40908016,0.00024821,2]
[311242684,1704991834477,-624.03152255,0.00024821,2]
[311242685,1704991834496,-1381.7786119,0.00024821,2]
[311242686,1704991834560,-4889.19311186,0.00024821,2]
[311242687,1704991834571,-2065.45835351,0.00024821,2]
[311242700,1704991838308,-399.97788808,0.00023125,2]
[311242701,1704991838318,-1892.07211192,0.00023126,2]
[311242702,1704991838329,-250.45643705,0.00023126,2]
[311242703,1704991838338,-362.56514989,0.00023126,2]
[311242704,1704991838350,-358.48667185,0.00023126,2]
[311242705,1704991838368,-218.32550838,0.00023126,2]
[311242706,1704991838378,-653.14568222,0.00024821,2]
[311242707,1704991838428,-18202.50842697,0.00024821,2]
[311242708,1704991838457,-785.11577967,0.00024821,2]
[311242709,1704991838466,-318.45,0.00024842,2]
[311242710,1704991838475,-100.31843344,0.00024854,2]
[311242711,1704991838486,-996.60156656,0.00024854,2]
[311242712,1704991838495,-318.45,0.00024908,2]
[311242713,1704991838505,-255.84,0.00024966,2]
[311242714,1704991838514,-318.45,0.00024973,2]
[311242715,1704991838525,-1096.92,0.00024975,2]
[311242716,1704991838535,-300.0,0.00024996,2]
[311242717,1704991838545,-300.0,0.00024996,2]
[311242718,1704991838554,-190.50606502,0.00024996,2]
[311242719,1704991838563,-692.73695879,0.00025,2]
[311242720,1704991838572,-1139.66505663,0.00025,2]
[311242721,1704991838584,-107.21240954,0.00025,2]
[311242722,1704991838593,-392.78759046,0.00025,2]
[311242723,1704991838605,-257.21240954,0.00025,2]
[311242724,1704991838614,-16.85432457,0.00025038,2]
[311242725,1704991838669,-301.59567543,0.00025038,2]
[311242726,1704991838679,-1096.92,0.00025097,2]
[311242727,1704991838688,-420.0,0.00025123,2]
[311242728,1704991838697,-237.34873446,0.000252,2]
[311242729,1704991838706,-259.06685894,0.00025213,2]
[311242730,1704991838715,-1096.92,0.00025218,2]
[311242731,1704991838724,-1137.73977791,0.00025291,2]
[311242732,1704991838733,-1313.54560262,0.00025316,2]
[311242733,1704991838742,-1096.92,0.00025339,2]
[311242734,1704991838751,-861.55,0.00025378,2]
[311242735,1704991838760,-999.99,0.00025378,2]
[311242736,1704991838770,-392.95,0.00025378,2]
[311242738,1704991838779,-499.99,0.00025382,2]
[311242740,1704991838788,-737.3,0.00025382,2]
[311242742,1704991838797,-736.03,0.00025383,2]
[311242744,1704991838806,-732.82,0.00025385,2]
[311242746,1704991838815,-9999.99,0.00025387,2]
[311242748,1704991838825,-721.66,0.00025387,2]
[311242750,1704991838834,-929.18,0.00025387,2]
[311242752,1704991838843,-150.99,0.00025388,2]
[311242755,1704991838855,-718.49,0.00025388,2]
[311242757,1704991838864,-735.6,0.0002539,2]
[311242759,1704991838874,-155.21,0.00025438,2]
[311242761,1704991838883,-737.07,0.0002544,2]
[311242763,1704991838892,-210.0,0.00025462,2]
[311242765,1704991838901,-158.1942,0.00025487,2]
[311242767,1704991838911,-262.96284194,0.00025487,2]
[311242769,1704991838920,-186.2702355,0.00025487,2]
[311242771,1704991838930,-475.11039076,0.00025487,2]
[311242773,1704991838939,-192.03501615,0.00025487,2]
[311242775,1704991838948,-167.14187597,0.00025487,2]
[311242777,1704991838958,-179.81964,0.00025487,2]
[311242779,1704991838967,-973.06840789,0.00025487,2]
[311242781,1704991838976,-162.43098833,0.00025487,2]
[311242783,1704991838985,-531.93173294,0.00025487,2]
[311242785,1704991838994,-719.06,0.00025488,2]
[311242787,1704991839003,-730.77,0.00025489,2]
[311242789,1704991839012,-162.2681877,0.00025489,2]
[311242791,1704991839021,-296.5660249,0.00025489,2]
[311242793,1704991839031,-155.50679806,0.00025489,2]
[311242795,1704991839040,-1047.34150784,0.00025489,2]
[311242797,1704991839049,-347.30480544,0.00025489,2]
[311242799,1704991839058,-155.40173906,0.00025489,2]
[311242801,1704991839067,-352.7615835,0.00025489,2]
[311242803,1704991839077,-156.58496978,0.00025489,2]
[311242805,1704991839086,-197.39955724,0.00025489,2]
[311242807,1704991839095,-2000.0,0.00025489,2]
[311242809,1704991839105,-561.08248552,0.00025489,2]
[311242811,1704991839114,-156.08787432,0.00025489,2]
[311242813,1704991839124,-181.16123302,0.00025489,2]
[311242815,1704991839133,-196.37114886,0.00025489,2]
[311242817,1704991839142,-1042.38109743,0.00025489,2]
[311242819,1704991839151,-158.85901812,0.00025489,2]
[311242821,1704991839160,-276.40757262,0.00025489,2]
[311242823,1704991839170,-155.78596393,0.00025489,2]
[311242825,1704991839179,-205.95951556,0.00025489,2]
[311242827,1704991839190,-175.37272974,0.00025489,2]
[311242847,1704991839365,-732.53,0.00025489,2]
[311242849,1704991839375,-20633.18317077,0.00025489,2]
[311242851,1704991839384,-155.0,0.0002549,2]
[311242853,1704991839393,-3067.91485925,0.0002549,2]
[311242855,1704991839402,-307.84460225,0.0002549,2]
[311242858,1704991839412,-155.55451817,0.0002549,2]
[311242860,1704991839421,-4620.10854886,0.0002549,2]
[311242861,1704991839430,-6332.661,0.00025491,2]
[311242864,1704991839440,-724.55,0.00025491,2]
[311242866,1704991839450,-722.05,0.00025491,2]
[311242868,1704991839459,-717.55,0.00025491,2]
[311242870,1704991839468,-730.62,0.00025492,2]
[311242872,1704991839477,-10610.12452045,0.00025492,2]
[311242874,1704991839487,-720.75,0.00025493,2]
[311242876,1704991839496,-709.52,0.00025493,2]
[311242878,1704991839505,-725.7,0.00025494,2]
[311242880,1704991839514,-718.09,0.00025495,2]
[311242882,1704991839523,-725.06,0.00025495,2]
[311242884,1704991839533,-161.52,0.00025744,2]
[311242886,1704991839542,-259.06685894,0.00025838,2]
[311242887,1704991839551,-255.84,0.00025945,2]
[311242890,1704991839560,-170.55704472,0.00025977,2]
[311242891,1704991839570,-212.83,0.00025983,2]
[311242893,1704991839578,-6671.94305189,0.00026,2]
[311242895,1704991839587,-156.93,0.00026033,2]
[311242897,1704991839597,-155.21,0.00026298,2]
[311242899,1704991839606,-498.14,0.00026404,2]
[311242901,1704991839615,-259.06685894,0.00026464,2]
[311242904,1704991839624,-4074.31,0.00026575,2]
[311242906,1704991839633,-2175.35,0.00026575,2]
[311242908,1704991839642,-156.93,0.00026732,2]
[311242910,1704991839651,-255.84,0.00026923,2]
[311242911,1704991839661,-349.2266678,0.00026994,2]
[311242913,1704991839670,-476.04349129,0.00027,2]
[311242916,1704991839680,-259.06685894,0.00027089,2]
[311242918,1704991839689,-155.21,0.00027158,2]
[311242920,1704991839699,-212.83,0.00027164,2]
[311242922,1704991839708,-587.0,0.00027269,2]
[311242924,1704991839717,-1067.83534181,0.00027369,3]
[311242926,1704991839726,-219.99906844,0.00027396,2]
[311242928,1704991839735,-530.0,0.00027397,2]
[311242930,1704991839744,-218.07,0.00027397,2]
[311242932,1704991839754,-250.0,0.00027397,2]
[311242934,1704991839763,-161.87,0.000274,2]
[311242936,1704991839774,-156.93,0.00027432,2]
[311242938,1704991839783,-218.07,0.00027556,2]
[311242940,1704991839792,-218.07,0.00027714,2]
[311242942,1704991839802,-259.06685894,0.00027715,2]
[311242944,1704991839811,-218.07,0.00027872,2]
[311242946,1704991839821,-255.84,0.00027901,2]
[311242948,1704991839831,-687.67126358,0.00028,2]
[311242950,1704991839840,-203.31330377,0.00028,2]
[311242952,1704991839850,-218.07,0.0002803,2]
[311242954,1704991839860,-156.93,0.00028132,2]
[311242956,1704991839870,-218.07,0.00028189,2]
[311242958,1704991839879,-259.06685894,0.0002834,2]
[311242960,1704991839888,-212.83,0.00028345,2]
[311242962,1704991839898,-218.07,0.00028347,2]
[311242964,1704991839907,-218.07,0.00028505,2]
[311242966,1704991839916,-218.07,0.00028664,2]
[311242968,1704991839924,-498.14,0.00028668,2]
[311242970,1704991839934,-1000.0,0.00028815,2]
[311242972,1704991839944,-218.07,0.00028822,2]
[311242974,1704991839952,-156.93,0.00028831,2]
[311242976,1704991839962,-255.84,0.0002888,2]
[311242978,1704991839971,-259.06685894,0.00028965,2]
[311242980,1704991839980,-419.15596519,0.0002949,2]
[311242982,1704991839991,-5094.05466202,0.00029499,2]
[311242984,1704991840002,-19100.27553742,0.000295,2]
[311242986,1704991840014,-156.93,0.00029531,2]
[311242988,1704991840028,-259.06685894,0.00029591,2]
[311242990,1704991840042,-823.0,0.00029597,2]
[311242992,1704991840053,-559.88627078,0.0002969,2]
[311242994,1704991840066,-3908.4083,0.000298,2]
[311242996,1704991840077,-7505.7049,0.000298,3]
[311242998,1704991840087,-1025.7956,0.000298,2]
[311243000,1704991840098,-255.84,0.00029858,2]
[311243002,1704991840108,-19878.0226,0.000299,2]
[311243004,1704991840119,-789.8151,0.000299,2]
[311243006,1704991840129,-7017.9524,0.000299,2]
[311243009,1704991840139,-729.7444,0.000299,2]
[311243012,1704991840149,-319.52689448,0.000299,2]
[311243015,1704991840158,-349.2266678,0.00029963,2]
[311243017,1704991840168,-855.43551821,0.0002998,3]
[311243020,1704991840178,-1038.8432883,0.0002998,7]
[311243023,1704991840188,-161.87,0.0002999,2]
[311243025,1704991840198,-155.0,0.0003,4]
[311243027,1704991840208,-155.0,0.0003,4]
[311243029,1704991840217,-72797.28205453,0.0003,4]
[311243031,1704991840227,-581.6237216,0.0003,2]
[311243033,1704991840238,-155.0,0.0003,2]
[311243035,1704991840247,-200.0,0.0003,7]
[311243037,1704991840257,-200.0,0.0003,7]
[311243039,1704991840268,-450.0,0.0003002,3]
[311243041,1704991840284,-3395.05,0.00030137,2]
[311243043,1704991840295,-259.06685894,0.00030216,2]
[311243045,1704991840305,-156.93,0.0003023,2]
[311243047,1704991840315,-1067.83534181,0.00030291,5]
[311243049,1704991840324,-255.84,0.00030837,2]
[311243051,1704991840334,-259.06685894,0.00030842,2]
[311243053,1704991840345,-156.93,0.0003093,2]
[311243055,1704991840357,-498.14,0.00030932,2]
[311243058,1704991840367,-259.06685894,0.00031467,2]
[311243060,1704991840378,-319.52689446,0.00031498,4]
[311243062,1704991840388,-450.0,0.00031673,3]
[311243064,1704991840398,-375.47,0.00031685,2]
[311243065,1704991840408,-186.2564123,0.00031715,2]
[311243067,1704991840418,-269.73,0.00031799,2]
[311243069,1704991840428,-269.73,0.00031799,2]
[311243072,1704991840439,-269.73,0.00031799,2]
[311243074,1704991840449,-269.73,0.00031799,2]
[311243076,1704991840460,-269.73,0.00031799,2]
[311243078,1704991840470,-269.73,0.00031799,2]
[311243080,1704991840481,-269.73,0.00031799,2]
[311243081,1704991840491,-269.73,0.00031799,2]
[311243084,1704991840501,-269.73,0.00031799,2]
[311243086,1704991840512,-269.73,0.00031799,2]
[311243088,1704991840523,-170105.599765,0.000318,2]
[311243090,1704991840536,-255.84,0.00031815,2]
[311243092,1704991840546,-2953.9225897,0.00031893,3]
[311243093,1704991840556,-9450.31109807,0.00031979,2]
[311243096,1704991840565,-85052.7998826,0.0003199,2]
[311243097,1704991840575,-161.87,0.0003199,2]
[311243100,1704991840585,-164.57054149,0.00031993,2]
[311243102,1704991840595,-173559.82731972,0.00032,2]
[311243104,1704991840604,-259.06685894,0.00032092,2]
[311243106,1704991840614,-245.0,0.00032125,3]
[311243108,1704991840624,-1057.13967802,0.00032295,3]
[311243110,1704991840634,-1000.0,0.00032417,2]
[311243112,1704991840643,-259.06685894,0.00032718,2]
[311243114,1704991840653,-255.84,0.00032794,2]
[311243116,1704991840663,-848.01,0.00032877,15]
[311243118,1704991840672,-3135.68900182,0.000329,2]
[311243120,1704991840682,-349.2266678,0.00032931,2]
[311243122,1704991840691,-2953.92258961,0.00033075,5]
[311243124,1704991840700,-319.52689446,0.00033096,6]
[311243126,1704991840709,-498.14,0.00033195,2]
[311243128,1704991840718,-1067.83534181,0.00033213,6]
[311243130,1704991840728,-450.0,0.00033327,3]
[311243132,1704991840737,-259.06685894,0.00033343,2]
[311243134,1704991840747,-191.41641656,0.00033362,4]
[311243136,1704991840756,-204.14809871,0.00033362,4]
[311243138,1704991840765,-879.12831859,0.00033363,2]
[311243140,1704991840779,-472.80031983,0.00033363,4]
[311243142,1704991840788,-255.84,0.00033772,2]
[311243144,1704991840798,-259.06685894,0.00033969,2]
[311243146,1704991840807,-1000.0,0.00034,4]
[311243148,1704991840817,-201.6432844,0.00034,2]
[311243150,1704991840827,-250.0,0.00034,2]
[311243152,1704991840837,-150.0,0.00034,2]
[311243154,1704991840846,-150.0,0.00034,2]
[311243156,1704991840855,-256.42,0.00034,7]
[311243158,1704991840866,-256.42,0.00034137,7]
[311243160,1704991840876,-2953.92258961,0.00034258,6]
[311243162,1704991840886,-250.0,0.00034274,2]
[311243164,1704991840897,-256.42,0.00034274,7]
[311243166,1704991840907,-256.42,0.00034411,7]
[311243168,1704991840918,-350.0,0.00034548,2]
[311243170,1704991840929,-150.0,0.00034548,2]
[311243172,1704991840939,-256.42,0.00034548,7]
[311243174,1704991840948,-259.06685894,0.00034594,2]
[311243176,1704991840958,-9450.31109807,0.0003464,6]
[311243178,1704991840968,-158.73,0.00034654,2]
[311243180,1704991840978,-2000.0,0.00034654,2]
[311243183,1704991840987,-256.42,0.00034685,7]
[311243185,1704991840997,-150.0,0.00034723,2]
[311243187,1704991841006,-255.84,0.00034751,2]
[311243189,1704991841016,-256.42,0.00034822,7]
[311243191,1704991841027,-190.27601325,0.000349,7]
[311243193,1704991841037,-152.98732005,0.000349,2]
[311243195,1704991841046,-831.80625963,0.000349,2]
[311243197,1704991841056,-831.80625961,0.000349,2]
[311243198,1704991841065,-831.80625961,0.000349,2]
[311243199,1704991841074,-831.80625961,0.000349,2]
[311243200,1704991841084,-2008.58048886,0.000349,2]
[311243201,1704991841094,-187.18634131,0.000349,2]
[311243202,1704991841104,-1023.76166173,0.000349,2]
[311243203,1704991841113,-169.16,0.00034938,2]
[311243204,1704991841123,-256.42,0.00034959,7]
[311243205,1704991841133,-867.52335516,0.0003498,3]
[311243206,1704991841143,-776.50095856,0.0003498,3]
[311243207,1704991841152,-28350.9332942,0.0003499,7]
[311243209,1704991841162,-419.15596519,0.0003499,2]
[311243211,1704991841171,-161.87,0.0003499,2]
[311243213,1704991841180,-1278.28133876,0.00034997,2]
[311243216,1704991841190,-5000.0,0.00035,2]
[311243218,1704991841200,-2528.67982368,0.00035,10]
[311243220,1704991841209,-255.41007841,0.00035,4]
[311243222,1704991841219,-1804.3259406,0.00035,4]
[311243223,1704991841229,-16499.22203045,0.00035,2]
[311243226,1704991841239,-15716.17370559,0.00035,7]
[311243228,1704991841248,-688706.81421779,0.00035,2]
[311243230,1704991841257,-2500.0,0.00035,2]
[311243232,1704991841266,-1860.04685255,0.00035,4]
[311243234,1704991841278,-776.10323469,0.00035,2]
[311243236,1704991841288,-450.0,0.0003502,3]
[311243238,1704991841300,-256.42,0.00035096,7]
[311243240,1704991841309,-161.87,0.00035101,2]
[311243242,1704991841319,-2500.0,0.00035111,30]
[311243244,1704991841328,-2500.0,0.00035111,20]
[311243246,1704991841338,-259.06685894,0.0003522,2]
[311243248,1704991841347,-256.42,0.00035233,7]
[311243250,1704991841357,-256.42,0.0003537,7]
[311243252,1704991841366,-2953.92258961,0.0003544,8]
[311243254,1704991841375,-498.14,0.00035459,2]
[311243256,1704991841384,-256.42,0.00035507,7]
[311243258,1704991841394,-256.42,0.00035644,7]
[311243260,1704991841403,-167.0,0.00035694,2]
[311243262,1704991841413,-255.84,0.00035729,2]
[311243264,1704991841423,-457.16328073,0.00035781,7]
[311243266,1704991841433,-259.06685894,0.00035845,2]
[311243268,1704991841443,-7115.3988,0.00035899,2]
[311243270,1704991841453,-1104.66920358,0.00035899,2]
[311243272,1704991841463,-349.2266678,0.000359,2]
[311243274,1704991841472,-1000.0,0.00035945,15]
[311243276,1704991841482,-500.0,0.00035945,2]
[311243278,1704991841491,-245000.0,0.00035945,2]
[311243280,1704991841501,-468.10138208,0.00035999,2]
[311243282,1704991841511,-4017.2913993,0.00036,4]
[311243284,1704991841520,-1038.76477041,0.00036,4]
[311243286,1704991841532,-254.5523337,0.00036,4]
[311243288,1704991841541,-437.25032491,0.00036,4]
[311243290,1704991841551,-508.04025934,0.00036,4]
[311243292,1704991841560,-2132.61368255,0.00036,2]
[311243295,1704991841569,-1713.49,0.00036,7]
[311243297,1704991841579,-76368.60111517,0.00036,4]
[311243299,1704991841588,-352.1,0.00036,2]
[311243301,1704991841598,-155.74,0.00036,2]
[311243303,1704991841607,-1000.0,0.00036019,2]
[311243305,1704991841617,-152.15,0.00036024,2]
[311243307,1704991841627,-152.98731987,0.00036093,2]
[311243309,1704991841636,-831.80625961,0.00036116,2]
[311243311,1704991841646,-1067.83534181,0.00036134,7]
[311243312,1704991841655,-156.47,0.00036319,2]
[311243315,1704991841665,-158.73,0.00036387,2]
[311243317,1704991841674,-848.01,0.00036613,15]
[311243319,1704991841683,-2953.92258961,0.00036623,9]
[311243321,1704991841692,-156.47,0.0003665,2]
[311243327,1704991841738,-450.0,0.00036673,3]
[311243329,1704991841747,-200.0,0.000367,2]
[311243331,1704991841756,-308.0,0.000367,2]
[311243333,1704991841765,-255.84,0.00036708,2]
[311243335,1704991841776,-562.18952912,0.00036764,9]
[311243337,1704991841785,-1713.49,0.000368,7]
[311243339,1704991841794,-21764.97835785,0.00036857,11]
[311243341,1704991841803,-29709.59021044,0.00036857,11]
[311243343,1704991841812,-10304.71933951,0.00036857,12]
[311243345,1704991841820,-349.66631741,0.00036955,7]
[311243347,1704991841831,-156.47,0.0003698,2]
[311243349,1704991841840,-1278.28133876,0.00036997,2]
[311243351,1704991841850,-100000.0,0.00037,7]
[311243353,1704991841862,-5000.0,0.00037,3]
[311243355,1704991841871,-222.67,0.00037,2]
[311243357,1704991841879,-2500.0,0.00037111,30]
[311243359,1704991841889,-152.98731987,0.00037286,2]
[311243361,1704991841898,-156.47,0.0003731,2]
[311243363,1704991841908,-676.724794,0.000374,24]
[311243365,1704991841918,-200.0,0.0003749,5]
[311243367,1704991841927,-1490.0,0.000375,12]
[311243369,1704991841936,-1000.0,0.000375,2]
[311243371,1704991841945,-637.0,0.000375,2]
[311243373,1704991841955,-1461.0,0.000375,2]
[311243375,1704991841965,-1000.0,0.00037538,2]
[311243377,1704991841975,-156.47,0.0003764,2]
[311243379,1704991841985,-831.80625961,0.00037695,2]
[311243381,1704991841997,-1713.49,0.000377,7]
[311243383,1704991842011,-498.14,0.00037723,2]
[311243385,1704991842022,-155.04448703,0.00037734,7]
[311243387,1704991842035,-1000.0,0.00037766,30]
[311243389,1704991842045,-1000.0,0.00037766,30]
[311243391,1704991842055,-500.0,0.00037766,120]
[311243394,1704991842065,-383.66804724,0.00037766,2]
[311243396,1704991842075,-1279.597124,0.00037766,2]
[311243398,1704991842085,-155.04448703,0.0003779,7]
[311243400,1704991842094,-4087.13477564,0.00037795,4]
[311243402,1704991842103,-162.65355037,0.00037795,4]
[311243404,1704991842113,-1294.74,0.000378,3]
[311243406,1704991842122,-1294.74,0.000378,3]
[311243408,1704991842131,-1294.74,0.000378,3]
[311243410,1704991842141,-1294.74,0.000378,3]
[311243412,1704991842151,-1294.74,0.000378,3]
[311243414,1704991842160,-1294.74,0.000378,3]
[311243416,1704991842170,-1294.74,0.000378,3]
[311243418,1704991842179,-1294.74,0.000378,3]
[311243420,1704991842189,-1294.74,0.000378,3]
[311243422,1704991842198,-1294.74,0.000378,3]
[311243424,1704991842208,-1294.74,0.000378,3]
[311243425,1704991842218,-1294.74,0.000378,3]
[311243427,1704991842228,-1294.74,0.000378,3]
[311243429,1704991842237,-1294.74,0.000378,3]
[311243431,1704991842247,-1294.74,0.000378,3]
[311243433,1704991842257,-1294.74,0.000378,3]
[311243436,1704991842267,-1294.74,0.000378,3]
[311243437,1704991842282,-1294.74,0.000378,3]
[311243440,1704991842293,-1294.74,0.000378,3]
[311243442,1704991842302,-1294.74,0.000378,3]
[311243443,1704991842312,-2953.92258961,0.00037805,11]
[311243445,1704991842321,-4074.31,0.00037808,2]
[311243446,1704991842341,-2175.35,0.00037808,2]
[311243448,1704991842350,-419.15596519,0.0003789,2]
[311243451,1704991842360,-6097.18,0.000379,7]
[311243453,1704991842369,-1593.56,0.000379,7]
[311243455,1704991842378,-605376.874735,0.000379,2]
[311243457,1704991842387,-156.47,0.0003797,2]
[311243459,1704991842396,-500.0,0.00037999,4]
[311243460,1704991842405,-500.0,0.00037999,4]
[311243462,1704991842414,-500.0,0.00037999,4]
[311243465,1704991842424,-401.57958435,0.00037999,4]
[311243467,1704991842433,-500.0,0.00037999,4]
[311243469,1704991842442,-534.55929507,0.00037999,4]
[311243470,1704991842451,-574.91386496,0.00037999,4]
[311243472,1704991842460,-158.60004307,0.00037999,4]
[311243474,1704991842469,-100000.0,0.00038,8]
[311243476,1704991842478,-158367.04220359,0.00038,4]
[311243478,1704991842487,-158.73,0.00038119,2]
[311243481,1704991842497,-180.0,0.00038119,2]
[311243482,1704991842506,-153.84,0.00038119,2]
[311243485,1704991842515,-160.15937548,0.00038178,7]
[311243487,1704991842526,-156.47,0.000383,2]
[311243491,1704991842535,-450.0,0.00038327,3]
[311243492,1704991842544,-1348.71024854,0.00038356,30]
[311243494,1704991842553,-600.0,0.00038356,2]
[311243496,1704991842562,-605.45308476,0.00038356,2]
[311243499,1704991842571,-666.0,0.00038356,2]
[311243500,1704991842580,-152.98731987,0.00038479,2]
[311243503,1704991842590,-6097.18,0.000385,7]
[311243505,1704991842599,-1593.56,0.000385,7]
[311243506,1704991842608,-156.47,0.00038631,2]
[311243508,1704991842618,-5229.75472743,0.000387,28]
[311243510,1704991842627,-1713.49,0.000387,7]
[311243512,1704991842637,-212.62608725,0.000388,16]
[311243514,1704991842646,-4874.167324,0.00038948,2]
[311243516,1704991842655,-156.47,0.00038961,2]
[311243518,1704991842664,-281.73212903,0.0003898,2]
[311243520,1704991842673,-2953.92258961,0.00038988,12]
[311243522,1704991842682,-100000.0,0.00039,9]
[311243524,1704991842692,-1427.43973993,0.00039,2]
[311243526,1704991842702,-282.68132749,0.00039,4]
[311243528,1704991842712,-155.0,0.0003901,4]
[311243529,1704991842721,-155.04448703,0.00039026,7]
[311243531,1704991842732,-1067.83534181,0.00039056,9]
[311243533,1704991842741,-1122.62,0.00039101,10]
[311243535,1704991842749,-1752.79,0.00039101,10]
[311243538,1704991842759,-2500.0,0.00039111,60]
[311243540,1704991842768,-2843.6114783,0.00039111,60]
[311243542,1704991842777,-6097.18,0.000392,7]
[311243543,1704991842786,-1593.56,0.000392,7]
[311243545,1704991842795,-247.6,0.0003926,2]
[311243547,1704991842803,-831.80625961,0.00039274,2]
[311243549,1704991842813,-153.84,0.00039274,2]
[311243551,1704991842823,-156.47,0.00039291,2]
[311243553,1704991842834,-1294.74,0.000394,3]
[311243555,1704991842842,-1294.74,0.000394,3]
[311243557,1704991842851,-1294.74,0.000394,3]
[311243559,1704991842863,-1294.74,0.000394,3]
[311243561,1704991842872,-1294.74,0.000394,3]
[311243563,1704991842881,-1294.74,0.000394,3]
[311243565,1704991842890,-1294.74,0.000394,3]
[311243567,1704991842899,-1294.74,0.000394,3]
[311243569,1704991842908,-1294.74,0.000394,3]
[311243571,1704991842916,-1294.74,0.000394,3]
[311243573,1704991842925,-1294.74,0.000394,3]